Cogmind - Beta 9.6 @@@ ROGUE MODE // 2020.06.12 @ 13:45:15 Player: Demise Result: Destroyed by 8R-AWN with 8R-AWN's Boregun Performance ------------- Evolutions (1) 500 Regions Visited (5) 1000 Robots Destroyed (66) 330 Value Destroyed (836) 836 Prototype IDs (24) 480 Alien Tech Used (0) 0 Bonus (-296) -296 TOTAL SCORE: 2850 Bonus ------- Aligned with FarCom 300 Friendly Fire -596 Cogmind --------- Core Integrity 0/400 Matter 230/300 Energy 51/100 System Corruption 7% Temperature Cool (0) Movement Core (50) Location -9/Exiles Parts ------- > --- POWER (1) -------- (None) > --- PROPULSION (2) --- (None) > --- UTILITY (4) ------ Salvage Targeting Computer > --- WEAPON (2) ------- Heavy Hammer > --- INVENTORY (4) ---- Improved Treads Superbattery (2000) Peak State ------------ > --- POWER ------------ Light Angular Momentum Engine > --- PROPULSION ------- Improved Treads Improved Treads > --- UTILITY ---------- Improved Heat Sink Medium Storage Unit Large Storage Unit Large Storage Unit > --- WEAPON ----------- Beam Rifle Minigun > --- INVENTORY -------- Ion Engine Improved Treads Improved Treads Improved Treads Medium Storage Unit High-capacity Battery High-capacity Matter Pod Sensor Array Signal Interpreter Advanced Terrain Scanner Improved Terrain Scan Processor Light Armor Plating Light Armor Plating Hardlight Generator Beam Rifle Beam Rifle Spread Laser Light Assault Rifle Mining Laser Heavy Hammer [Rating: 23] Favorites ----------- Power Light Ion Engine Engine Light Ion Engine Propulsion Improved Treads Treads Improved Treads Leg Aluminum Leg Wheel Wheel Utility Large Storage Unit Device Improved Heat Sink Storage Large Storage Unit Processor Salvage Targeting Computer Protection Light Armor Plating Weapon EM Shotgun Energy Gun EM Shotgun Ballistic Gun Minigun Launcher Rocket Launcher Special Weapon Mining Laser Impact Weapon Heavy Hammer Build | -11 -10 -10 -9 -9 -9 ------- Run | Scr Mat Min Mat Min Exi Slots Evolved 2 | . . . 2 . . Power . | . . . . . . Propulsion . | . . . . . . Utility 2 | . . . 2 . . Weapon . | . . . . . . Parts Attached 64 | 5 17 5 13 10 14 Power 10 | . 4 2 1 2 1 Engine 10 | . 4 2 1 2 1 Core . | . . . . . . Reactor . | . . . . . . Propulsion 16 | 4 5 . 3 3 1 Treads 9 | . 4 . 2 2 1 Leg . | . . . . . . Wheel 7 | 4 1 . 1 1 . Hover . | . . . . . . Flight . | . . . . . . Utility 14 | 1 2 . 3 1 7 Device 1 | . . . 1 . . Storage 7 | 1 2 . 2 1 1 Processor 2 | . . . . . 2 Hackware . | . . . . . . Protection 4 | . . . . . 4 Artifact . | . . . . . . Weapon 24 | . 6 3 6 4 5 Energy Gun 14 | . 6 2 2 2 2 Energy Cannon . | . . . . . . Ballistic Gun 5 | . . 1 3 1 . Ballistic Cannon . | . . . . . . Launcher 3 | . . . . 1 2 Special Weapon 1 | . . . 1 . . Impact Weapon 1 | . . . . . 1 Slashing Weapon . | . . . . . . Piercing Weapon . | . . . . . . Special Melee Weapon . | . . . . . . Unidentified Prototypes . | . . . . . . Parts Lost 20 | . 4 2 . 5 9 Power 2 | . . . . 1 1 Propulsion 3 | . 1 . . . 2 Utility 3 | . . . . . 3 Weapon 12 | . 3 2 . 4 3 Highest Loss Streak 9 | . 2 1 . 3 9 Average Slot Usage (%) 96 | . 96 98 95 98 90 Engine 12 | . 14 14 11 11 10 Treads 16 | . 19 14 14 11 21 Wheel 7 | . 6 14 7 10 . Storage 28 | . 28 28 34 44 9 Processor 3 | . . . . . 19 Protection 1 | . . . . . 6 Energy Gun 19 | . 26 26 10 12 11 Ballistic Gun 3 | . . . 10 8 . Launcher 1 | . . . . . 9 Naked Turns . | . . . . . . Heaviest Build 90 | 14 43 47 62 67 90 Greatest Support 46 | 26 40 20 46 46 23 Greatest Overweight (x) 5 | 4 4 2 5 5 5 Average Overweight (x) 2 | . 1 2 3 4 1 Largest Inventory Capacity 26 | 8 16 16 24 26 26 Average Capacity 17 | 7 15 16 20 25 16 Most Carried 26 | 8 16 16 22 26 26 Average Carried 15 | 7 15 15 19 24 7 Final Capacity 26 | 8 16 16 24 26 4 Final Carried 26 | 8 16 16 22 26 2 Class Distribution -------------------- 60% | Mutant 39% | Hauler-Mutant Dominant Class ---------------- Mutant | -10/Materials Mutant | -10/Mines Hauler-Mutant | -9/Materials Hauler-Mutant | -9/Mines Hauler-Mutant | -9/Exiles Resources | -11 -10 -10 -9 -9 -9 ----------- Run | Scr Mat Min Mat Min Exi Matter Collected 1260 | 345 365 40 185 245 80 Remotely . | . . . . . . Salvage Created 1514 | 193 685 274 232 117 13 Parts 112 | 17 54 16 15 4 6 Haulers Intercepted 4 | . 2 . 2 . . Recyclers Shooed . | . . . . . . Parts Field Recycled . | . . . . . . Retrieved Matter . | . . . . . . Parts Self-Destructed . | . . . . . . Prevented . | . . . . . . Kills | -11 -10 -10 -9 -9 -9 ------- Run | Scr Mat Min Mat Min Exi Combat Hostiles Destroyed 46 | . 18 8 5 9 6 Guns 37 | . 15 6 5 9 2 AOE 9 | . 3 2 . . 4 Classes Destroyed 11 | 3 5 . 1 2 . Worker 2 | 2 . . . . . Tunneler 6 | 5 . 1 . . . Hauler 4 | . 2 . 2 . . Recycler 1 | 1 . . . . . Mechanic 1 | . 1 . . . . Watcher 4 | . 3 . 1 . . Swarmer 24 | . 11 6 4 3 . Grunt 9 | . 7 2 . . . Sentry 1 | . . . 1 . . Demolisher 1 | . . . . 1 . Assembled 11 | . . . . 5 6 Thug 1 | . . 1 . . . Best Kill Streak 7 | 4 4 3 5 3 7 Combat Bots Only 6 | . 3 3 4 3 6 Max Kills in Single Turn 3 | 1 3 2 1 2 3 Gunslinging 1 | . . . . 1 1 Exploded 3 | . 2 2 . . 3 Melee . | . . . . . . Uniques/NPCs Destroyed 1 | . . . . . 1 EX-HEX (-9/Exiles) Combat | -11 -10 -10 -9 -9 -9 -------- Run | Scr Mat Min Mat Min Exi Damage Taken 3053 | . 830 164 266 850 943 Core 646 | . 196 48 48 167 187 Absorbed by Shields . | . . . . . . Core Remaining (%) 51 | 100 . 2 . . . Volleys Fired 161 | 17 48 22 32 34 8 Largest 2 | 2 2 2 2 2 2 Hottest 112 | 60 90 110 100 112 112 Shots Fired 297 | 34 94 35 59 64 11 Gun 287 | 34 94 35 57 61 6 Cannon . | . . . . . . Launcher 8 | . . . . 3 5 Special 2 | . . . 2 . . Kinetic 76 | 17 . . 30 29 . Thermal 86 | 17 . 2 29 32 6 Explosive 8 | . . . . 3 5 Electromagnetic 127 | . 94 33 . . . Robot Hit Streak 10 | 7 8 5 10 5 5 Robot Miss Streak 9 | 2 5 5 9 3 1 Penetration Max . | . . . . . . Secondary Targets 7 | . 2 1 . 3 1 Max Gunslinging Chain 1 | . 1 1 . 1 1 Shots Hit Robots 188 | 20 68 24 30 36 10 Core Hits 108 | 9 38 13 13 19 16 Critical Hits . | . . . . . . Critical Kills . | . . . . . . Critical Parts Destroyed . | . . . . . . Melee Attacks 1 | . . . . . 1 Impact 1 | . . . . . 1 Slashing . | . . . . . . Piercing . | . . . . . . Sneak Attacks . | . . . . . . Combat Hostiles . | . . . . . . Follow-up Attacks . | . . . . . . Damage Inflicted 3651 | 239 1181 525 448 564 694 Guns 2453 | 239 773 374 448 543 76 Cannons . | . . . . . . Explosions 1160 | . 408 151 . 21 580 Melee 38 | . . . . . 38 Ramming . | . . . . . . Kinetic 550 | 149 . . 157 244 . Thermal 1346 | 90 408 182 291 299 76 Explosive 601 | . . . . 21 580 Electromagnetic 1116 | . 773 343 . . . Impact 38 | . . . . . 38 Slashing . | . . . . . . Piercing . | . . . . . . Highest Corruption 7 | . . . . . 7 Average Corruption 6 | . . . . . 6 Corruption Purged . | . . . . . . Overload Shots . | . . . . . . Overflow Damage 158 | . 102 26 . . 30 Projectiles . | . . . . . . Explosions 158 | . 102 26 . . 30 Melee . | . . . . . . Knockbacks . | . . . . . . Impact . | . . . . . . Kinetic . | . . . . . . Secondary . | . . . . . . Self-Inflicted Damage 385 | . 282 56 . . 47 Shots 8 | . 5 2 . . 1 Rammed . | . . . . . . Targets Rammed . | . . . . . . Kicked . | . . . . . . Crushed . | . . . . . . Highest Temperature 210 | . 210 120 48 135 37 Average Temperature 44 | . 62 43 9 35 27 Received Heat Transfer 182 | . 66 6 30 80 . Siege Activations . | . . . . . . Robots Corrupted 1 | . . 1 . . . Combat Hostiles . | . . . . . . Parts Fried 3 | . 1 2 . . . Impact Corruptions . | . . . . . . Robots Melted . | . . . . . . Combat Hostiles . | . . . . . . Parts Melted 3 | . . 1 . 1 1 Heat Transferred 2485 | 200 350 224 740 777 194 Parts Sabotaged . | . . . . . . Parts Stolen . | . . . . . . Parts Stripped . | . . . . . . Power Chain Reactions 7 | . 4 3 . . . Missiles Intercepted . | . . . . . . Alert | -11 -10 -10 -9 -9 -9 ------- Run | Scr Mat Min Mat Min Exi Peak Influence 303 | 40 303 127 190 75 . Average Influence 96 | 24 193 63 43 20 . Maximum Alert Level 1 | . 1 . . . . Low Security (%) 80 | 100 46 100 100 100 . Level 1 19 | . 53 . . . . Level 2 . | . . . . . . Level 3 . | . . . . . . Level 4 . | . . . . . . Level 5 . | . . . . . . High Security . | . . . . . . Max Security . | . . . . . . Squads Dispatched 6 | . 3 . 3 . . Investigation 4 | . 3 . 1 . . Extermination . | . . . . . . Reinforcement 2 | . . . 2 . . Assault . | . . . . . . Garrison . | . . . . . . Intercept . | . . . . . . Construction Impeded . | . . . . . . Haulers Reinforced . | . . . . . . Stealth | -11 -10 -10 -9 -9 -9 --------- Run | Scr Mat Min Mat Min Exi Distress Signals 3 | . 1 . 2 . . Communications Jammed . | . . . . . . Distress Signals . | . . . . . . Times Spotted 78 | . 28 7 20 15 8 Peak Tracking Total 9 | . 5 3 4 4 9 Tactical Retreats 9 | . 3 . 1 5 . Traps | -11 -10 -10 -9 -9 -9 ------- Run | Scr Mat Min Mat Min Exi Traps Triggered 1 | . 1 . . . . Indirectly . | . . . . . . Trap Hack Attempts . | . . . . . . Triggered . | . . . . . . Disarmed . | . . . . . . Reprogrammed . | . . . . . . Reused . | . . . . . . Traps Extracted . | . . . . . . Installed . | . . . . . . Triggered 7 | . . . . 7 . Machines | -11 -10 -10 -9 -9 -9 ---------- Run | Scr Mat Min Mat Min Exi Machines Disabled 7 | . 3 . . . 4 Max in Single Turn 3 | . 3 . . . 1 Machines Sabotaged . | . . . . . . Garrisons Compromised . | . . . . . . Overloaded Fab Kills . | . . . . . . Fab Network Shutdowns . | . . . . . . Hacking | -11 -10 -10 -9 -9 -9 --------- Run | Scr Mat Min Mat Min Exi Machines Accessed 15 | . 11 1 1 . 2 Terminals 8 | . 8 . . . . Fabricators . | . . . . . . Repair Stations 1 | . 1 . . . . Recycling Units 3 | . 2 . 1 . . Scanalyzers . | . . . . . . Garrison Access . | . . . . . . Total Hacks 34 | . 29 1 2 . 2 Successful 24 | . 19 1 2 . 2 Failed 10 | . 10 . . . . Catastrophic 2 | . 2 . . . . Database Lockouts . | . . . . . . Manual 25 | . 23 . 1 . 1 Terminals 24 | . 24 . . . . Fabricators . | . . . . . . Repair Stations 3 | . 3 . . . . Recycling Units 4 | . 2 . 2 . . Scanalyzers . | . . . . . . Garrison Access . | . . . . . . Terminal Hacks 8 | . 5 1 . . 2 Record 1 | . . . . . 1 Part Schematic 1 | . 1 . . . . Prototype ID Bank 1 | . 1 . . . . Open Door 1 | . . 1 . . . Branch Access Points 1 | . 1 . . . . Locate Traps 1 | . 1 . . . . Recall Investigation 1 | . 1 . . . . EX-Prototype ID Bank 1 | . . . . . 1 Fabricator Hacks . | . . . . . . Repair Station Hacks 2 | . 2 . . . . Scan Component 1 | . 1 . . . . Repair 1 | . 1 . . . . Recycling Unit Hacks 1 | . . . 1 . . Report Inventory 1 | . . . 1 . . Scanalyzer . | . . . . . . Garrison Access Hacks . | . . . . . . Unauthorized Hacks 13 | . 12 . 1 . . Terminals 10 | . 10 . . . . Track 4 | . 4 . . . . Botnet 5 | . 5 . . . . Operators 1 | . 1 . . . . Fabricators . | . . . . . . Repair Stations . | . . . . . . Recycling Units 3 | . 2 . 1 . . Tunnel 3 | . 2 . 1 . . Scanalyzers . | . . . . . . Garrison Access . | . . . . . . Data Cores Recovered . | . . . . . . Used . | . . . . . . Hacking Detections 9 | . 9 . . . . Full Trace Events 1 | . 1 . . . . Feedback Events . | . . . . . . Feedback Blocked . | . . . . . . Robot Schematics Acquired . | . . . . . . Robots Built . | . . . . . . Matter . | . . . . . . Time . | . . . . . . Total Robot Build Rating . | . . . . . . Part Schematics Acquired 1 | . 1 . . . . Parts Built . | . . . . . . Matter . | . . . . . . Time . | . . . . . . Total Part Build Rating . | . . . . . . Parts Repaired 1 | . 1 . . . . Time 32 | . 32 . . . . Parts Recycled . | . . . . . . Recycled Matter . | . . . . . . Retrieved Matter . | . . . . . . Retrieved Components . | . . . . . . Parts Scanalyzed . | . . . . . . Part Schematics Acquired . | . . . . . . Parts Damaged . | . . . . . . Bothacking | -11 -10 -10 -9 -9 -9 ------------ Run | Scr Mat Min Mat Min Exi Used RIF Installer . | . . . . . . Robots Hacked . | . . . . . . Non-combat . | . . . . . . Combat . | . . . . . . Robot Hacks Applied . | . . . . . . Relay Couplers Released . | . . . . . . Robots Rewired . | . . . . . . Allies Hacked . | . . . . . . Hacks Repelled . | . . . . . . Allies | -11 -10 -10 -9 -9 -9 -------- Run | Scr Mat Min Mat Min Exi Total Allies . | . . . . . . Largest Group . | . . . . . . Highest-Rated Group . | . . . . . . Highest-Rated Ally . | . . . . . . Total Orders . | . . . . . . Ally Attacks . | . . . . . . Total Damage . | . . . . . . Kills . | . . . . . . Allies Corrupted . | . . . . . . Allies Melted . | . . . . . . Intel | -11 -10 -10 -9 -9 -9 ------- Run | Scr Mat Min Mat Min Exi Robot Analysis Total . | . . . . . . Derelict Logs Recovered 3 | . . 1 . 2 . Drone Launches . | . . . . . . Drone Recoveries . | . . . . . . Exploration | -11 -10 -10 -9 -9 -9 ------------- Run | Scr Mat Min Mat Min Exi Turns Passed 4723 | 155 1386 930 588 798 866 Spaces Moved 2398 | 92 677 428 281 488 432 Core 3 | 1 . . . . 2 Treads 1440 | . 480 428 130 4 398 Legs 13 | 13 . . . . . Wheels 942 | 78 197 . 151 484 32 Hover . | . . . . . . Flight . | . . . . . . Fastest Speed 50 | 90 90 200 130 130 50 Average Speed 166 | 95 163 200 159 139 187 Slowest Speed 250 | 250 200 200 200 180 220 Overloaded Moves . | . . . . . . Propulsion Burnouts . | . . . . . . Robots Hopped . | . . . . . . Cave-ins Triggered . | . . . . . . Exploration Rate (%) 57 | 3 96 75 28 74 67 Regions Visited 5 Branch Regions 3 Pre-discovered Areas 4 | . 2 . 1 . 1 Known Exits Taken 1 | . 1 . . . . Unknown Exits Taken 4 | 1 . 1 1 1 . Scrap Searched 1 | . . . . 1 . Spaces Dug 1 | . . . 1 . . Terrain Destroyed 127 | . 53 18 1 36 19 Melee . | . . . . . . Projectile 1 | . . . 1 . . AOE 126 | . 53 18 . 36 19 Actions | -11 -10 -10 -9 -9 -9 --------- Run | Scr Mat Min Mat Min Exi Total 2866 | 129 872 471 368 543 483 Wait 122 | . 94 9 16 3 . Move 2393 | 91 676 427 280 487 432 Hop . | . . . . . . Pick Up 55 | 6 18 3 13 7 8 Fast Attach 20 | 3 5 2 4 1 5 Attach 20 | . 5 1 2 5 7 Detach 9 | 2 2 . 2 1 2 Swap 24 | 2 7 2 7 4 2 Drop 61 | 8 17 5 12 1 18 Fire 161 | 17 48 22 32 34 8 Melee 1 | . . . . . 1 Ram . | . . . . . . Kick . | . . . . . . Crush . | . . . . . . Escape Stasis . | . . . . . . Rewire . | . . . . . . Trap . | . . . . . . Miscellaneous . | . . . . . . Route ------- -11/Scrapyard -10/Materials (discovered 4 exits: *Mat x3 / *Min) -10/Mines (discovered 2 exits: *Mat x2) -9/Materials -9/Mines (discovered 2 exits: [*Mat] / *Exi) -9/Exiles (discovered 1 exit: [*Min]) History --------- Turn | Location | Event 23 | -11/Scrapyard | Discovered new exit (range 3) 156 | -11/Scrapyard | Entered Materials 316 | -10/Materials | Build established: Mutant 481 | -10/Materials | Discovered new exit (range 4) 601 | -10/Materials | Discovered new exit (range 6) 862 | -10/Materials | Discovered new exit (range 15) 936 | -10/Materials | Repaired EM Shotgun 1011 | -10/Materials | Core integrity fell below 50% 1266 | -10/Materials | Discovered new exit (range 7) 1373 | -10/Materials | Identified exit to Mines 1542 | -10/Materials | Entered Mines 1544 | -10/Mines | Met a Derelict bent on vengeance 1547 | -10/Mines | Core integrity fell below 20% 1815 | -10/Mines | Learned Materials emergency access door positions 2072 | -10/Mines | Discovered new exit (range 8) 2383 | -10/Mines | Discovered new exit (range 15) 2421 | -10/Mines | Met a Derelict who couldn't figure out how to use a Trap Extractor 2472 | -10/Mines | Entered Materials 2472 | -9/Materials | Evolved 2 slots: Utility x2 2819 | -9/Materials | Build established: Hauler-Mutant 2983 | -9/Materials | Discovered new exit (range 9) 3060 | -9/Materials | Entered Mines 3120 | -9/Mines | Received a Rocket Launcher from a helpful Derelict 3133 | -9/Mines | Assembled infested the area 3266 | -9/Mines | Lost 3 parts (1p2w) 3274 | -9/Mines | Learned Materials terminal intel 3658 | -9/Mines | Core integrity fell below 50% 3721 | -9/Mines | Deemed a non-threat by the Exiles lab entrance 3721 | -9/Mines | Discovered new exit (range 5) 3763 | -9/Mines | Discovered new exit (range 9) 3858 | -9/Mines | Entered Exiles 3879 | -9/Exiles | Discovered new exit (range 15) 3986 | -9/Exiles | Met 8R-AWN 4015 | -9/Exiles | Met EX-HEX 4090 | -9/Exiles | Met EX-DEC 4115 | -9/Exiles | Learned location of Zion (-7) 4277 | -9/Exiles | Met EX-BIN 4308 | -9/Exiles | Aligned with FarCom system 4310 | -9/Exiles | Given EX-Vault access code 4361 | -9/Exiles | Opened EX-Vault 4374 | -9/Exiles | Found Cloak of Protection 4379 | -9/Exiles | Found Lightpack 2.0 4387 | -9/Exiles | Found Superbattery 4436 | -9/Exiles | Warned to stay clear of 0b10 Research branches 4697 | -9/Exiles | Attacked by the Exiles 4709 | -9/Exiles | Destroyed EX-HEX 4722 | -9/Exiles | Core integrity fell below 20% 4724 | -9/Exiles | Destroyed by 8R-AWN with 8R-AWN's Boregun Last Messages --------------- 04709_ as-64969 destroyed. 04710_ Penetrated by HV Slug. 04711_ Beam Rifle destroyed. 04712_ Penetrated by HV Slug. 04712_ as-21384 destroyed. 04714_ Penetrated by HV Slug. 04714_ Imp. Treads destroyed. 04716_ Penetrated by HV Slug. 04716_ Beam Rifle destroyed. 04716_ Penetrated by HV Slug. 04717_ Imp. Treads destroyed. 04717_ as-05690 destroyed. 04717_ Machine disabled. 04717_ as-48991 destroyed. 04717_ as-81305 destroyed. 04719_ Penetrated by HV Slug. 04719_ Rocket Launcher destroyed. 04721_ Penetrated by HV Slug. 04724_ HV Slug penetrates Wall. 04724_ Penetrated by HV Slug. Map ----- +----------------------------------------------------+ | """#?????????????????????????????????????? | | """#?????????????????????????????????????? | | """##????????????????????????????????????? | | """""????????????????????????????????????? | | """##????????????????????????????????????? | | "X" """"?????????????????????????????????????? | | """ #?????????????????????????????????????? | | """""""""#?????????????????????????????????????? | | ###########?????????????????????????????????????? | | #???????????????????????????????????????????????? | | #???????????????????????????????????????????????? | | ##??????????????????????????????????????????????? | | ##???###########???????????????????????????????? | | #####"""""""""##??????????????????????????????? | | " """ """"##?????????????????????????????? | | "" " #?????????????????????????????? | | " """#?????????????????????????????? | | " "#???????????#####?????????????? | | #?????????##" #?????????????? | | ##???????#" #?????????????# | | ""###????##" ##????????????# | | " "# ##?### ###????????### | | ##""" #?# ########## | | ?##""" !! ### #""""## | | ??#"""" !%! ## * | | ?##"" !! % @ g ## * | | ##"""" #### | | "" ""#?#"""""#### | | #"""##?#######??#### | | ######??????????????##### | | ##???????????????????????# | | ##????????????????????????? | | "" a % #?????????????????????????? | | #""" " " "" % ##?????????????????????????? | | #####""" """## #??????????????????????????? | | ????###""""#### ???????????????????????????? | | ###???######??#### # #???????????????????????????? | | "!#??????????????####????????????????????????????? | | !#??????????????????????????????????????????????? | | "#??????????????????????????????????????????????? | | !"#??????????????????????????????????????????????? | | ###??????????????????????????????????????????????? | | ?????????????????????????????????????????????????? | | ?????????????????????????????????????????????????? | | ?????????????????????????????????????????????????? | | ?????????????????????????????????????????????????? | | ?????????????????????????????????????????????????? | | ?????????????????????????????????????????????????? | | ?????????????????????????????????????????????????? | | ?????????????????????????????????????????????????? | +----------------------------------------------------+ Best States ------------- Heat Dissipation 42 Energy Generation 18 Energy Capacity 250 Matter Stores 300 Matter Capacity 300 Sight Range 16 Terrain Scan Density 10 Armor Coverage 375 Evasion (%) 42 Recoil Reduction 2 Salvage Targeting 2 Item Schematics ----------------- Hcp. Storage Unit | -10/Materials | Hacked Robot Schematics ------------------ None Fabricated ------------ Nothing Alien Tech Used ----------------- None Achievements -------------- None Challenges ------------ None Game ------ Seed LargeContainmentModule Manual? 0 Play Time 00:38:41 Cumulative 226.2 hours Start 2020.06.12 @ 13:11:09 End 2020.06.12 @ 13:45:15 Sessions 1 Manual Loads 0 Difficulty Rogue Special Mode None Game No. 296 Rogue 285 Adventurer 11 Explorer 0 Win Type - Total 0 Types 0/0/0/0/0/0/0 Lore% 53 Gallery% 66 Achievement% 45 Wizard Run 0 Options --------- ASCII 0 Keyboard 1 Movement Numpad Keybinds 0 Fullscreen 1 Font 12/Terminus Map View 83x54 Tactical HUD 1 Map Filters NONE Filters NONE Steam 1 RUN: a46faa3a-45ae-4d36-a92b-dee3a7ff22ea